Cogmind - Beta 14 @@@ ROGUE MODE // 2024.08.31 @ 13:57:00 Player: Zaros426 Result: Destroyed by Y-45 Defender with Heavy Assault Rifle Performance ------------- Evolutions (0) 0 Regions Visited (2) 400 Robots Destroyed (35) 175 Value Destroyed (726) 726 Prototype IDs (2) 40 Alien Tech Used (0) 0 Bonus (0) 0 TOTAL SCORE: 1341 Bonus ------- None Cogmind --------- Core Integrity 0/250 Matter 200/300 Energy 225/250 System Corruption 2% Temperature Cool (27) Movement Rolling (105) Ox1 Location -10/Mines Parts ------- > --- POWER (1) -------- Ion Engine > --- PROPULSION (2) --- Armored Wheel Armored Wheel > --- UTILITY (2) ------ Cooling System Large Storage Unit > --- WEAPON (2) ------- Beam Rifle Beam Rifle > --- INVENTORY (15) --- Ion Engine Ion Engine Armored Wheel Armored Wheel High-capacity Storage Unit Improved Terrain Scanner Hardened Light Armor Plating Hardened Light Armor Plating Hardened Light Armor Plating Hardened Light Armor Plating Shield Generator Trap Extractor (0/4) Beam Rifle Assault Rifle Grenade Launcher Peak State ------------ > --- POWER ------------ Ion Engine > --- PROPULSION ------- Armored Wheel Armored Wheel > --- UTILITY ---------- Cooling System Large Storage Unit > --- WEAPON ----------- Beam Rifle Beam Rifle > --- INVENTORY -------- Ion Engine Ion Engine High-capacity Storage Unit Improved Terrain Scanner Hardened Light Armor Plating Hardened Light Armor Plating Hardened Light Armor Plating Hardened Light Armor Plating Shield Generator Tractor Beam Trap Extractor Beam Rifle Beam Rifle Grenade Launcher [Rating: 14] Favorites ----------- Power Ion Engine Engine Ion Engine Propulsion Light Treads Treads Light Treads Wheel Armored Wheel Utility Large Storage Unit Device Cooling System Storage Large Storage Unit Protection Light Armor Plating Weapon Beam Rifle Energy Gun Beam Rifle Energy Cannon Beam Cannon Launcher Grenade Launcher Build | -11 -10 -10 ------- Run | Yrd Mat Min Slots Evolved . | . . . Power . | . . . Propulsion . | . . . Utility . | . . . Weapon . | . . . Parts Attached 34 | 9 23 2 Power 2 | 1 1 . Engine 2 | 1 1 . Core . | . . . Reactor . | . . . Propulsion 6 | 4 2 . Treads 2 | 2 . . Leg . | . . . Wheel 4 | 2 2 . Hover . | . . . Flight . | . . . Utility 11 | 2 9 . Device 6 | 1 5 . Storage 3 | 1 2 . Processor . | . . . Hackware . | . . . Protection 2 | . 2 . Artifact . | . . . Weapon 15 | 2 11 2 Energy Gun 11 | 2 8 1 Energy Cannon 1 | . 1 . Ballistic Gun . | . . . Ballistic Cannon . | . . . Launcher 3 | . 2 1 Special Weapon . | . . . Impact Weapon . | . . . Slashing Weapon . | . . . Piercing Weapon . | . . . Special Melee Weapon . | . . . Unidentified Prototypes . | . . . Parts Lost 3 | . 3 . Power . | . . . Propulsion . | . . . Utility 1 | . 1 . Weapon 2 | . 2 . Highest Loss Streak 3 | . 3 . To Critical Strikes . | . . . Average Slot Usage (%) 99 | . 99 100 Engine 14 | . 14 14 Treads 13 | . 15 . Wheel 14 | . 12 28 Device 10 | . 10 14 Storage 14 | . 14 14 Protection 2 | . 3 . Energy Gun 23 | . 23 20 Energy Cannon 3 | . 3 . Launcher 1 | . . 7 Peak Build Rating 14 | 7 14 14 Average Rating 10 | 6 10 13 On Entrance 7 | . 7 14 Naked Turns . | . . . Heaviest Build 34 | 11 34 33 Greatest Support 40 | 40 40 24 Greatest Overweight (x) 2 | . 2 1 Average Overweight (x) . | . . 1 Largest Inventory Capacity 15 | 8 15 15 Average Capacity 13 | 7 14 15 Most Carried 15 | 5 15 15 Average Carried 12 | 3 13 15 Final Capacity 15 | 8 15 15 Final Carried 15 | 5 15 15 Class Distribution -------------------- 100% | Mutant Dominant Class ---------------- Mutant | -10/Materials Mutant | -10/Mines Resources | -11 -10 -10 ----------- Run | Yrd Mat Min Matter Collected 642 | 331 311 . Remotely . | . . . Salvage Created 991 | 149 689 153 Parts 58 | 8 40 10 Haulers Intercepted 1 | . 1 . Recyclers Shooed 1 | 1 . . Parts Field Recycled . | . . . Retrieved Matter . | . . . Parts Self-Destructed . | . . . Prevented . | . . . Kills | -11 -10 -10 ------- Run | Yrd Mat Min Combat Hostiles Destroyed 23 | . 16 7 Guns 11 | . 10 1 Cannons 4 | . 4 . AOE 8 | . 2 6 Classes Destroyed 9 | 3 5 1 Worker 2 | 1 1 . Builder 1 | . 1 . Tunneler 3 | 3 . . Hauler 1 | . 1 . Recycler 2 | 1 . 1 Watcher 3 | . 3 . Swarmer 9 | . 3 6 Grunt 13 | . 13 . Sentry 1 | . . 1 Best Kill Streak 6 | 4 5 6 Combat Bots Only 6 | . 3 6 Max Kills in Single Turn 2 | 1 2 2 Gunslinging . | . . . Exploded 2 | . 1 2 Melee . | . . . Uniques/NPCs Destroyed . | . . . Combat | -11 -10 -10 -------- Run | Yrd Mat Min Hostile Shots Fired 105 | . 56 49 Missed 21 | . 11 10 Damage Taken 1012 | . 594 418 Core 261 | . 131 130 Absorbed by Shields . | . . . Core Remaining (%) 100 | 100 . . Volleys Fired 77 | 8 52 17 Largest 2 | 2 2 2 Hottest 112 | 80 112 112 Shots Fired 143 | 16 103 24 Gun 108 | 16 76 16 Cannon 23 | . 23 . Launcher 12 | . 4 8 Special . | . . . Kinetic . | . . . Thermal 131 | 16 99 16 Explosive 12 | . 4 8 Electromagnetic . | . . . Robot Hit Streak 11 | 6 11 10 Robot Miss Streak 4 | 2 4 2 Penetration Max . | . . . Secondary Targets 4 | . 3 1 Max Gunslinging Chain 1 | . 1 1 Shots Hit Robots 85 | 9 60 16 Core Hits 44 | 6 30 8 Critical Kills . | . . . Critical Parts Destroyed . | . . . Critical Strikes 4 | . 3 1 Burn 4 | . 3 1 Melee Attacks . | . . . Impact . | . . . Slashing . | . . . Piercing . | . . . Sneak Attacks . | . . . Combat Hostiles . | . . . Follow-up Attacks . | . . . Damage Inflicted 1967 | 128 1247 592 Guns 877 | 128 573 176 Cannons 313 | . 313 . Explosions 777 | . 361 416 Melee . | . . . Ramming . | . . . Kinetic . | . . . Thermal 1190 | 128 886 176 Explosive 777 | . 361 416 Electromagnetic . | . . . Impact . | . . . Slashing . | . . . Piercing . | . . . Highest Corruption 2 | . 2 2 Average Corruption 1 | . 1 2 Corruption Purged . | . . . Corruption Blocked . | . . . Effects 5 | . 2 3 Message Errors 2 | . 1 1 Matter Fused 1 | . 1 . Energy Discharges 1 | . . 1 Data Loss (minor) 1 | . . 1 Overload Shots . | . . . Overflow Damage 102 | . 18 84 Projectiles . | . . . Explosions 102 | . 18 84 Melee . | . . . Knockbacks . | . . . Impact . | . . . Kinetic . | . . . Secondary . | . . . Self-Inflicted Damage 52 | . 36 16 Shots 3 | . 2 1 Rammed . | . . . Targets Rammed . | . . . Kicked . | . . . Crushed . | . . . Highest Temperature 376 | 36 376 31 Average Temperature 106 | 20 122 17 Received Heat Transfer 408 | . 318 90 Effects 1 | . 1 . Shutdowns 1 | . 1 . Siege Activations . | . . . Robots Corrupted . | . . . Combat Hostiles . | . . . Parts Fried . | . . . Impact Corruptions . | . . . Robots Melted . | . . . Combat Hostiles . | . . . Parts Melted 12 | . 8 4 Heat Transferred 3211 | 275 2418 518 Parts Sabotaged . | . . . Parts Stolen . | . . . Parts Stripped . | . . . Power Chain Reactions . | . . . Alert | -11 -10 -10 ------- Run | Yrd Mat Min Peak Influence 271 | 25 209 271 Initial 44 | . 16 44 Average 110 | 15 113 158 Maximum Alert Level 1 | . 1 1 Low Security (%) 83 | 100 86 46 Level 1 16 | . 13 53 Level 2 . | . . . Level 3 . | . . . Level 4 . | . . . Level 5 . | . . . High Security . | . . . Max Security . | . . . Squads Dispatched 3 | . 3 . Investigation 2 | . 2 . Extermination . | . . . Reinforcement 1 | . 1 . Assault . | . . . Garrison . | . . . Intercept . | . . . Searches Triggered . | . . . Construction Impeded . | . . . Haulers Reinforced . | . . . Active Scanning Responses . | . . . Cargo Convoy Interrupts . | . . . Stealth | -11 -10 -10 --------- Run | Yrd Mat Min Distress Signals 1 | . 1 . Communications Jammed . | . . . Distress Signals . | . . . Times Spotted 29 | . 21 8 Peak Tracking Total 6 | . 5 6 Tactical Retreats 2 | . 1 1 Traps | -11 -10 -10 ------- Run | Yrd Mat Min Traps Triggered . | . . . Indirectly . | . . . Trap Hack Attempts . | . . . Triggered . | . . . Disarmed 4 | . 4 . Reprogrammed . | . . . Reused . | . . . Traps Extracted . | . . . Installed . | . . . Triggered . | . . . Machines | -11 -10 -10 ---------- Run | Yrd Mat Min Machines Disabled 2 | . 2 . Max in Single Turn 1 | . 1 . Machines Repaired . | . . . Machines Dismantled . | . . . Machines Sabotaged . | . . . Overloaded Fab Kills . | . . . Hacking | -11 -10 -10 --------- Run | Yrd Mat Min Machines Accessed 7 | . 7 . Terminals 7 | . 7 . Fabricators . | . . . Repair Stations . | . . . Recycling Units . | . . . Scanalyzers . | . . . Garrison Access . | . . . Total Hacks 35 | . 35 . Successful 20 | . 20 . Failed 15 | . 15 . Catastrophic 1 | . 1 . Database Lockouts . | . . . Manual 13 | . 13 . Terminals 35 | . 35 . Fabricators . | . . . Repair Stations . | . . . Recycling Units . | . . . Scanalyzers . | . . . Garrison Access . | . . . Terminal Hacks 12 | . 12 . Prototype ID Bank 1 | . 1 . Branch Access Points 1 | . 1 . Locate Traps 4 | . 4 . Disarm Traps 1 | . 1 . Dispatch Records 1 | . 1 . Maintenance Status 1 | . 1 . Surveillance Status 1 | . 1 . Reinforcement Status 1 | . 1 . Hauler Manifests 1 | . 1 . Fabricator Hacks . | . . . Repair Station Hacks . | . . . Recycling Unit Hacks . | . . . Scanalyzer . | . . . Garrison Access Hacks . | . . . Unauthorized Hacks 8 | . 8 . Terminals 8 | . 8 . Botnet 2 | . 2 . Skim 6 | . 6 . Fabricators . | . . . Repair Stations . | . . . Recycling Units . | . . . Scanalyzers . | . . . Garrison Access . | . . . Data Cores Recovered . | . . . Used . | . . . Hacking Detections 7 | . 7 . Full Trace Events 6 | . 6 . Feedback Events 2 | . 2 . Corruption 2 | . 2 . Feedback Blocked . | . . . Robot Schematics Acquired . | . . . Robots Built . | . . . Authchips . | . . . Time . | . . . Total Robot Build Rating . | . . . Part Schematics Acquired . | . . . Parts Built . | . . . Authchips . | . . . Time . | . . . Total Part Build Rating . | . . . Parts Repaired . | . . . Time . | . . . Parts Recycled . | . . . Recycled Matter . | . . . Retrieved Matter . | . . . Retrieved Components . | . . . Parts Scanalyzed . | . . . Part Schematics Acquired . | . . . Parts Damaged . | . . . Bothacking | -11 -10 -10 ------------ Run | Yrd Mat Min Used RIF Installer . | . . . Robots Hacked . | . . . Non-combat . | . . . Combat . | . . . Robot Hacks Applied . | . . . Relay Couplers Released . | . . . Fabnet Peak Effective % . | . . . Robots Rewired . | . . . Allies Hacked . | . . . Hacks Repelled . | . . . Allies | -11 -10 -10 -------- Run | Yrd Mat Min Total Allies . | . . . Largest Group . | . . . Highest-Rated Group . | . . . Highest-Rated Ally . | . . . Total Orders . | . . . Ally Attacks . | . . . Total Damage . | . . . Kills . | . . . Allies Corrupted . | . . . Allies Melted . | . . . Intel | -11 -10 -10 ------- Run | Yrd Mat Min Robot Analysis Total . | . . . Derelict Logs Recovered . | . . . Drone Launches . | . . . Drone Recoveries . | . . . Exploration | -11 -10 -10 ------------- Run | Yrd Mat Min Turns Passed 2051 | 166 1646 239 Spaces Moved 1312 | 87 1045 180 Core 5 | 5 . . Treads 502 | 63 439 . Legs . | . . . Wheels 805 | 19 606 180 Hover . | . . . Flight . | . . . Fastest Speed 50 | 50 105 105 Average Speed 125 | 140 128 105 Slowest Speed 160 | 160 160 105 Overloaded Moves . | . . . Propulsion Burnouts . | . . . Robots Hopped . | . . . Cave-ins Triggered . | . . . Exploration Rate (%) 45 | 4 96 37 Regions Visited 2 Branch Regions 1 Pre-discovered Areas . | . . . Known Exits Taken 1 | . 1 . Unknown Exits Taken 1 | 1 . . Scrap Searched . | . . . Spaces Dug . | . . . Terrain Destroyed 57 | . 15 42 Melee . | . . . Projectile . | . . . AOE 57 | . 15 42 Terrain Rammed . | . . . Walls Destroyed . | . . . Machines Disabled . | . . . Actions | -11 -10 -10 --------- Run | Yrd Mat Min Total 1570 | 112 1253 205 Wait 94 | . 88 6 Move 1310 | 86 1044 180 Hop . | . . . Pick Up 30 | 8 22 . Fast Attach 13 | 5 8 . Attach 5 | 2 3 . Detach 1 | . 1 . Swap 16 | 2 12 2 Drop 23 | 1 22 . Fire 77 | 8 52 17 Melee . | . . . Ram . | . . . Kick . | . . . Crush . | . . . Escape Stasis . | . . . Rewire 1 | . 1 . Trap . | . . . Miscellaneous . | . . . Route ------- -11/Scrapyard -10/Materials (discovered 5 exits: [*Mat x3] / *Min / [*Sub]) -10/Mines (discovered 2 exits: [*Mat x2]) History --------- Turn | Location | Event 15 | -11/Scrapyard | Discovered new exit (range 16) 167 | -11/Scrapyard | Entered Materials 249 | -10/Materials | Discovered new exit (range 5) 331 | -10/Materials | Build established: Mutant 688 | -10/Materials | Discovered new exit (range 7) 795 | -10/Materials | Lost 3 parts (1u2w) 855 | -10/Materials | Discovered new exit (range 5) 967 | -10/Materials | Derelicts attacked the area 1131 | -10/Materials | Discovered new exit (range 6) 1394 | -10/Materials | Learned Storage stockpile data 1441 | -10/Materials | Core integrity fell below 50% 1591 | -10/Materials | Discovered new exit (range 8) 1733 | -10/Materials | Identified exit to Mines 1813 | -10/Materials | Entered Mines 1820 | -10/Mines | Received a Rocket Launcher from a helpful Derelict 1828 | -10/Mines | Discovered new exit (range 15) 1857 | -10/Mines | Met a Derelict bent on vengeance 1873 | -10/Mines | Discovered new exit (range 10) 2041 | -10/Mines | Core integrity fell below 20% 2052 | -10/Mines | Destroyed by Y-45 Defender with Heavy Assault Rifle Last Messages --------------- 01929_ The unstable cave ceiling collapses. 01975_ K-01 Serf collects debris. 01978_ U-05 Engineer builds a Wall. 01979_ The unstable cave ceiling collapses. 01979_ K-01 Serf collects debris. 01982_ U-05 Engineer lays Concrete. 01983_ K-01 Serf collects debris. 01983_ U-05 Engineer lays Concrete. 01987_ K-01 Serf collects debris. 01987_ U-05 Engineer builds a Wall. 01995_ K-01 Serf collects debris. 01995_ U-05 Engineer lays Concrete. 01999_ CTWONU:FUX7OAK U4B>COA 02043_ Critical hit (Burn: +37). 02046_ Lgt. Treads melted. 02046_ Heat Sink melted. 02046_ Y-45 Defender destroyed. 02046_ Switching to secondary target: Y-45 Defender. 02047_ K-01 Serf collects debris. 02052_ Critical hit (Burn: +37). Map ----- +----------------------------------------------------+ | ?????????????????????????#???## #??# ##?????? | | ?????????????????????????# ### #??# #####??? | | ?????????????????????????# ##?# #??? | | ?????????????????????????#### ### #### #??? | | ????????????????????????????## ] ###??#%#??? | | ?????????????????????????????## #????# #??? | | ??????????????????????????????## #????# #??? | | ???????????????????????????????## #????# #??? | | ????????????????????????????????# ##????# #??? | | ???????????????????????????????# ##?????# #??? | | ??????????????????????????????# ###??????# #??? | | ??????????????????????????????# ##????##??# #??? | | ??????????????????????????????## ##????## ### #??? | | ???????????????????????????????##??????# ##?? | | ???????????????????????????????????????## ##? | | ????????????????????????????????????????## ## | | ?????????????????????????????????????????## # | | ??????????????????????????????????????????## | | ???????????????????????????????????????????# | | ?????????????????????######????????????????## | | ????????????????????##" "#?????????????????## # | | ????????????????????#]! !!??????????????????## ## | | ????????????????????#!] !????????????????????# #? | | ?????????????????????# ! ####????????????????# #? | | ????????????????????###Y/## ###########????### #? | | ????????????????????# %@ #???## !!#? | | ???????????????????## ######### #???# !## | | ???????????????????# k ##???????# #???# ! # | | ???????????? ##????????# #???## ! | | ????????????###### ####?????????# ###??## < | | ?????????????????### #?????????????# #???## # | | ???????????????????# #??????????????### #????# ## | | ???????????????????# ????????????????## ###### | | ???????????????????# ????????????????# ## | | ???????????????????# ????????????????## #### ####? | | ???????????????????##????????????????# # ##### | | ?????????????????????????????????????# ### # | | ??????????????????????????????????# ### ### # ## | | ??????????????????????????????????# % | | ??????????????????????????????????######## | | ?????????????????????????????????????# | | ?????????????????????????????????????# | | ?????????????????????????????????????## | | ??????????????????????????????????????# | | ??????????????????????????????????????## #### | | ??????????????????????????????????????########??# | | ????????????????????????????????????????????????# | | ???????????????????????????????????????????????## | | ???????????????????????????????????????????##### | | ??????????????????????????????????????????## | +----------------------------------------------------+ Best States ------------- Heat Dissipation 47 Energy Generation 10 Energy Capacity 250 Matter Stores 300 Matter Capacity 300 Sight Range 16 Terrain Scan Density 10 Armor Coverage 150 Evasion (%) 40 Recoil Reduction 2 Trap Extractor Capacity 4 Item Schematics ----------------- None Robot Schematics ------------------ None Fabricated ------------ Nothing Alien Tech Used ----------------- None Achievements -------------- None Challenges ------------ None Game ------ Seed SmartbombGuidanceMapper Manual? 0 Play Time 00:17:08 Cumulative 39.1 hours Start 2024.08.31 @ 13:41:28 End 2024.08.31 @ 13:57:00 Sessions 1 Manual Loads 0 Difficulty Rogue Special Mode None Game No. 26 Rogue 26 Adventurer 0 Explorer 0 Win Type - Total 0 Types 0/0/0/0/0/0/0/0/0 Lore% 33 Gallery% 44 Achievement% 39 Wizard Run 0 Options --------- Layout 0 ASCII 0 Keyboard 0 Movement Mouse Keybinds 0 Fullscreen 1 Font 24/Smallcaps Map View 183x50 Zoom Use 0% Tactical HUD 1 Map Filters NONE Filters NONE Steam 0 RUN: 1df6e8d3-353d-470e-8047-20a50c490099